[Event "Titled Tuesday Blitz March 28 Early 2023"]
[White "Subelj, Jan"]
[Black "Drygalov, Andrey"]
[WhiteFideId "14618583"]
[BlackFideId "24171735"]
[WhiteElo "2474"]
[BlackElo "2471"]
[Result "0-1"]
[Round "10"]
[TimeControl "180+2"]
[Date "2023.03.28"]
[WhiteClock "0:00:13"]
[BlackClock "0:00:13"]

1. e4 {[%clk 0:03:00]}  c5 {[%clk 0:03:00]} 2. Na3 {[%clk 0:03:01]}  e6 {[%clk 0:02:59]} 3. c3 {[%clk 0:02:57]}  Nf6 {[%clk 0:02:59]} 4. d3 {[%clk 0:02:55]}  Nc6 {[%clk 0:02:59]} 5. f4 {[%clk 0:02:54]}  d5 {[%clk 0:02:57]} 6. e5 {[%clk 0:02:54]}  Nd7 {[%clk 0:02:57]} 7. Nf3 {[%clk 0:02:54]}  f6 {[%clk 0:02:53]} 8. d4 {[%clk 0:02:48]}  Qb6 {[%clk 0:02:49]} 9. Nc2 {[%clk 0:02:47]}  Be7 {[%clk 0:02:46]} 10. a3 {[%clk 0:02:46]}  O-O {[%clk 0:02:35]} 11. b4 {[%clk 0:02:35]}  cxd4 {[%clk 0:02:35]} 12. cxd4 {[%clk 0:02:36]}  fxe5 {[%clk 0:02:34]} 13. fxe5 {[%clk 0:02:37]}  Ncxe5 {[%clk 0:02:02]} 14. dxe5 {[%clk 0:02:33]}  Nxe5 {[%clk 0:02:03]} 15. Be3 {[%clk 0:02:34]}  Nxf3+ {[%clk 0:02:02]} 16. gxf3 {[%clk 0:02:28]}  Bh4+ {[%clk 0:02:01]} 17. Kd2 {[%clk 0:02:24]}  Qc7 {[%clk 0:01:57]} 18. Bd3 {[%clk 0:02:23]}  e5 {[%clk 0:01:55]} 19. Rc1 {[%clk 0:02:18]}  Qe7 {[%clk 0:01:46]} 20. Rg1 {[%clk 0:02:11]}  b6 {[%clk 0:01:33]} 21. Ke2 {[%clk 0:01:47]}  Be6 {[%clk 0:01:29]} 22. Qd2 {[%clk 0:01:45]}  Qf7 {[%clk 0:01:20]} 23. Rcf1 {[%clk 0:01:43]}  e4 {[%clk 0:01:20]} 24. Bb5 {[%clk 0:01:36]}  exf3+ {[%clk 0:01:19]} 25. Kd1 {[%clk 0:01:36]}  f2 {[%clk 0:01:18]} 26. Rh1 {[%clk 0:01:21]}  Rac8 {[%clk 0:01:07]} 27. h3 {[%clk 0:01:17]}  Bf5 {[%clk 0:00:58]} 28. Nd4 {[%clk 0:01:15]}  Be4 {[%clk 0:00:58]} 29. Rh2 {[%clk 0:01:14]}  Qc7 {[%clk 0:00:58]} 30. Rhxf2 {[%clk 0:01:06]}  Bxf2 {[%clk 0:00:58]} 31. Rxf2 {[%clk 0:01:06]}  Rxf2 {[%clk 0:00:58]} 32. Bxf2 {[%clk 0:01:04]}  Qh2 {[%clk 0:00:56]} 33. h4 {[%clk 0:01:02]}  Qh3 {[%clk 0:00:53]} 34. Qe3 {[%clk 0:01:00]}  Qh1+ {[%clk 0:00:40]} 35. Qe1 {[%clk 0:01:00]}  Qh3 {[%clk 0:00:33]} 36. Qe3 {[%clk 0:00:59]}  Qxe3 {[%clk 0:00:21]} 37. Bxe3 {[%clk 0:01:00]}  Rc3 {[%clk 0:00:21]} 38. Kd2 {[%clk 0:00:56]}  Rxa3 {[%clk 0:00:20]} 39. Bd7 {[%clk 0:00:51]}  a5 {[%clk 0:00:18]} 40. bxa5 {[%clk 0:00:50]}  bxa5 {[%clk 0:00:19]} 41. Be6+ {[%clk 0:00:50]}  Kh8 {[%clk 0:00:19]} 42. Nc6 {[%clk 0:00:48]}  a4 {[%clk 0:00:17]} 43. Ne5 {[%clk 0:00:47]}  h6 {[%clk 0:00:14]} 44. h5 {[%clk 0:00:46]}  Kh7 {[%clk 0:00:14]} 45. Bc5 {[%clk 0:00:43]}  Rb3 {[%clk 0:00:14]} 46. Ng6 {[%clk 0:00:34]}  a3 {[%clk 0:00:09]} 47. Nf8+ {[%clk 0:00:34]}  Kh8 {[%clk 0:00:09]} 48. Ke2 {[%clk 0:00:17]}  a2 {[%clk 0:00:09]} 49. Bd4 {[%clk 0:00:17]}  Rb1 {[%clk 0:00:08]} 50. Ng6+ {[%clk 0:00:08]}  Bxg6 {[%clk 0:00:09]} 51. hxg6 {[%clk 0:00:09]}  a1=Q {[%clk 0:00:09]} 52. Bxa1 {[%clk 0:00:10]}  Rxa1 {[%clk 0:00:10]} 53. Bxd5 {[%clk 0:00:10]}  Ra6 {[%clk 0:00:10]} 54. Bf7 {[%clk 0:00:11]}  Rf6 {[%clk 0:00:10]} 55. Ke3 {[%clk 0:00:11]}  h5 {[%clk 0:00:11]} 56. Ke2 {[%clk 0:00:11]}  h4 {[%clk 0:00:11]} 57. Ke3 {[%clk 0:00:11]}  h3 {[%clk 0:00:12]} 58. Ke2 {[%clk 0:00:12]}  h2 {[%clk 0:00:12]} 59. Bd5 {[%clk 0:00:13]}  Rxg6 {[%clk 0:00:13]} 60. Kf2 {[%clk 0:00:13]}  Rg1 {[%clk 0:00:13]} 0-1


[Site "https://www.chess.com"]

[Event "Titled Tuesday Blitz March 28 Early 2023"]
[White "Galchenko, Matvey"]
[Black "Wei, Yi"]
[WhiteFideId "24175480"]
[BlackFideId "8603405"]
[WhiteElo "2404"]
[BlackElo "2686"]
[Result "0-1"]
[Round "10"]
[TimeControl "180+2"]
[Date "2023.03.28"]
[WhiteClock "0:00:01"]
[BlackClock "0:00:10"]

1. e4 {[%clk 0:03:00]}  Nc6 {[%clk 0:02:58]} 2. d4 {[%clk 0:03:00]}  d5 {[%clk 0:02:57]} 3. e5 {[%clk 0:03:00]}  Bf5 {[%clk 0:02:57]} 4. c3 {[%clk 0:02:58]}  Qd7 {[%clk 0:02:56]} 5. Bd3 {[%clk 0:02:58]}  O-O-O {[%clk 0:02:50]} 6. Ne2 {[%clk 0:02:58]}  f6 {[%clk 0:02:42]} 7. f4 {[%clk 0:02:57]}  g5 {[%clk 0:02:42]} 8. O-O {[%clk 0:02:42]}  gxf4 {[%clk 0:02:30]} 9. Bxf4 {[%clk 0:02:26]}  Bxd3 {[%clk 0:02:26]} 10. Qxd3 {[%clk 0:02:27]}  fxe5 {[%clk 0:02:26]} 11. dxe5 {[%clk 0:02:27]}  e6 {[%clk 0:02:17]} 12. Nd2 {[%clk 0:02:26]}  Nge7 {[%clk 0:02:16]} 13. Nf3 {[%clk 0:02:20]}  Ng6 {[%clk 0:02:13]} 14. Bg3 {[%clk 0:02:20]}  Bg7 {[%clk 0:02:02]} 15. Qe3 {[%clk 0:02:15]}  h5 {[%clk 0:01:59]} 16. h3 {[%clk 0:01:32]}  h4 {[%clk 0:01:58]} 17. Bh2 {[%clk 0:01:32]}  Rh5 {[%clk 0:01:59]} 18. Rae1 {[%clk 0:01:05]}  Bh6 {[%clk 0:01:52]} 19. Qd3 {[%clk 0:00:57]}  Ngxe5 {[%clk 0:01:46]} 20. Nxe5 {[%clk 0:00:58]}  Nxe5 {[%clk 0:01:46]} 21. Bxe5 {[%clk 0:00:56]}  Rxe5 {[%clk 0:01:46]} 22. Nd4 {[%clk 0:00:56]}  Qd6 {[%clk 0:01:28]} 23. Kh1 {[%clk 0:00:35]}  Bg7 {[%clk 0:01:17]} 24. Qg6 {[%clk 0:00:28]}  Rxe1 {[%clk 0:01:17]} 25. Rxe1 {[%clk 0:00:29]}  Bxd4 {[%clk 0:01:14]} 26. cxd4 {[%clk 0:00:26]}  Kd7 {[%clk 0:01:14]} 27. Rf1 {[%clk 0:00:15]}  Re8 {[%clk 0:01:03]} 28. Qh7+ {[%clk 0:00:14]}  Kc8 {[%clk 0:00:53]} 29. Qxh4 {[%clk 0:00:14]}  b6 {[%clk 0:00:53]} 30. Qg4 {[%clk 0:00:12]}  Qb4 {[%clk 0:00:51]} 31. Qg6 {[%clk 0:00:10]}  Re7 {[%clk 0:00:51]} 32. Qf6 {[%clk 0:00:08]}  Kd7 {[%clk 0:00:49]} 33. b3 {[%clk 0:00:07]}  c5 {[%clk 0:00:47]} 34. dxc5 {[%clk 0:00:05]}  bxc5 {[%clk 0:00:48]} 35. Qf8 {[%clk 0:00:04]}  d4 {[%clk 0:00:40]} 36. Qa8 {[%clk 0:00:03]}  Kd6 {[%clk 0:00:39]} 37. Qe4 {[%clk 0:00:02]}  Qb7 {[%clk 0:00:36]} 38. Qf4+ {[%clk 0:00:02]}  Kc6 {[%clk 0:00:36]} 39. Qe5 {[%clk 0:00:02]}  Qc7 {[%clk 0:00:35]} 40. Qe4+ {[%clk 0:00:02]}  Kb6 {[%clk 0:00:33]} 41. Rc1 {[%clk 0:00:03]}  a5 {[%clk 0:00:30]} 42. a3 {[%clk 0:00:02]}  e5 {[%clk 0:00:24]} 43. b4 {[%clk 0:00:03]}  axb4 {[%clk 0:00:24]} 44. axb4 {[%clk 0:00:04]}  c4 {[%clk 0:00:25]} 45. Qd5 {[%clk 0:00:04]}  c3 {[%clk 0:00:26]} 46. Ra1 {[%clk 0:00:04]}  Rd7 {[%clk 0:00:15]} 47. Qa5+ {[%clk 0:00:04]}  Kc6 {[%clk 0:00:14]} 48. Qc5+ {[%clk 0:00:04]}  Kb7 {[%clk 0:00:15]} 49. Ra7+ {[%clk 0:00:03]}  Kb8 {[%clk 0:00:15]} 50. Rxc7 {[%clk 0:00:04]}  Rxc7 {[%clk 0:00:15]} 51. Qb6+ {[%clk 0:00:03]}  Kc8 {[%clk 0:00:16]} 52. Qe6+ {[%clk 0:00:04]}  Kb7 {[%clk 0:00:16]} 53. Qd5+ {[%clk 0:00:03]}  Kb6 {[%clk 0:00:13]} 54. Qa5+ {[%clk 0:00:04]}  Kc6 {[%clk 0:00:11]} 55. h4 {[%clk 0:00:01]}  c2 {[%clk 0:00:10]} 0-1


[Site "https://www.chess.com"]

[Event "Titled Tuesday Blitz March 28 Early 2023"]
[White "Koustav, Chatterjee"]
[Black "Santos Ruiz, Miguel"]
[WhiteFideId "25073060"]
[BlackFideId "22291482"]
[WhiteElo "2432"]
[BlackElo "2504"]
[Result "1-0"]
[Round "10"]
[TimeControl "180+2"]
[Date "2023.03.28"]
[WhiteClock "0:00:23"]
[BlackClock "0:00:26"]

1. Nf3 {[%clk 0:03:00]}  d5 {[%clk 0:03:00]} 2. d4 {[%clk 0:03:01]}  c6 {[%clk 0:02:59]} 3. c4 {[%clk 0:02:58]}  Nf6 {[%clk 0:02:58]} 4. e3 {[%clk 0:02:58]}  e6 {[%clk 0:02:57]} 5. b3 {[%clk 0:02:54]}  Nbd7 {[%clk 0:02:53]} 6. Bd3 {[%clk 0:02:52]}  b6 {[%clk 0:02:51]} 7. O-O {[%clk 0:02:52]}  Bb7 {[%clk 0:02:51]} 8. Nbd2 {[%clk 0:02:52]}  c5 {[%clk 0:02:49]} 9. Bb2 {[%clk 0:02:51]}  Rc8 {[%clk 0:02:49]} 10. Qe2 {[%clk 0:02:49]}  Be7 {[%clk 0:02:40]} 11. cxd5 {[%clk 0:02:42]}  exd5 {[%clk 0:02:36]} 12. Bf5 {[%clk 0:02:16]}  O-O {[%clk 0:02:34]} 13. Ne5 {[%clk 0:02:14]}  Rc7 {[%clk 0:02:32]} 14. Ndf3 {[%clk 0:02:00]}  g6 {[%clk 0:02:15]} 15. Bxd7 {[%clk 0:01:56]}  Nxd7 {[%clk 0:02:15]} 16. Nxd7 {[%clk 0:01:56]}  Qxd7 {[%clk 0:02:14]} 17. dxc5 {[%clk 0:01:57]}  bxc5 {[%clk 0:02:13]} 18. Rac1 {[%clk 0:01:57]}  Qe6 {[%clk 0:02:12]} 19. Rfd1 {[%clk 0:01:54]}  d4 {[%clk 0:02:05]} 20. Nxd4 {[%clk 0:01:47]}  Qd5 {[%clk 0:01:37]} 21. Nf3 {[%clk 0:01:45]}  Qf5 {[%clk 0:01:36]} 22. Ba1 {[%clk 0:01:32]}  Rfc8 {[%clk 0:01:24]} 23. Ne5 {[%clk 0:01:27]}  h5 {[%clk 0:01:13]} 24. Nc4 {[%clk 0:01:23]}  h4 {[%clk 0:01:11]} 25. h3 {[%clk 0:01:17]}  Qg5 {[%clk 0:01:04]} 26. f3 {[%clk 0:01:16]}  Bf6 {[%clk 0:00:53]} 27. f4 {[%clk 0:01:04]}  Qf5 {[%clk 0:00:47]} 28. Nd6 {[%clk 0:01:04]}  Qe6 {[%clk 0:00:46]} 29. Bxf6 {[%clk 0:00:49]}  Qxf6 {[%clk 0:00:47]} 30. Nxc8 {[%clk 0:00:49]}  Rxc8 {[%clk 0:00:47]} 31. Rd2 {[%clk 0:00:49]}  Be4 {[%clk 0:00:45]} 32. Rcd1 {[%clk 0:00:49]}  Re8 {[%clk 0:00:46]} 33. Rd6 {[%clk 0:00:49]}  Qe7 {[%clk 0:00:46]} 34. Qd2 {[%clk 0:00:49]}  Kh7 {[%clk 0:00:43]} 35. Rd8 {[%clk 0:00:49]}  Bc6 {[%clk 0:00:41]} 36. Rxe8 {[%clk 0:00:49]}  Qxe8 {[%clk 0:00:41]} 37. Qf2 {[%clk 0:00:40]}  Qe7 {[%clk 0:00:41]} 38. f5 {[%clk 0:00:38]}  g5 {[%clk 0:00:41]} 39. f6 {[%clk 0:00:34]}  Qe4 {[%clk 0:00:40]} 40. Qf3 {[%clk 0:00:30]}  Qxf3 {[%clk 0:00:24]} 41. gxf3 {[%clk 0:00:31]}  Bxf3 {[%clk 0:00:24]} 42. Rd7 {[%clk 0:00:32]}  Kg6 {[%clk 0:00:24]} 43. Rxa7 {[%clk 0:00:32]}  Kxf6 {[%clk 0:00:24]} 44. a4 {[%clk 0:00:33]}  Kg6 {[%clk 0:00:24]} 45. a5 {[%clk 0:00:33]}  f5 {[%clk 0:00:25]} 46. a6 {[%clk 0:00:25]}  g4 {[%clk 0:00:26]} 47. Rc7 {[%clk 0:00:24]}  gxh3 {[%clk 0:00:26]} 48. a7 {[%clk 0:00:24]}  Kg5 {[%clk 0:00:26]} 49. Rc8 {[%clk 0:00:23]}  Kg4 {[%clk 0:00:26]} 50. Kh2 {[%clk 0:00:23]} 1-0


[Site "https://www.chess.com"]

[Event "Titled Tuesday Blitz March 28 Early 2023"]
[White "Cherniaiev, Tykhon"]
[Black "Ozen, Deniz"]
[WhiteFideId "14182360"]
[BlackFideId "6349196"]
[WhiteElo "2450"]
[BlackElo "2303"]
[Result "1/2-1/2"]
[Round "10"]
[TimeControl "180+2"]
[Date "2023.03.28"]
[WhiteClock "0:00:09"]
[BlackClock "0:00:47"]

1. Nf3 {[%clk 0:03:00]}  d5 {[%clk 0:03:00]} 2. d4 {[%clk 0:03:00]}  Nf6 {[%clk 0:03:00]} 3. c4 {[%clk 0:02:59]}  c6 {[%clk 0:02:59]} 4. e3 {[%clk 0:02:59]}  Bf5 {[%clk 0:02:59]} 5. Bd3 {[%clk 0:02:59]}  Bxd3 {[%clk 0:02:57]} 6. Qxd3 {[%clk 0:03:00]}  e6 {[%clk 0:02:58]} 7. O-O {[%clk 0:03:00]}  Bd6 {[%clk 0:02:56]} 8. Nbd2 {[%clk 0:03:00]}  O-O {[%clk 0:02:56]} 9. e4 {[%clk 0:03:00]}  dxe4 {[%clk 0:02:57]} 10. Nxe4 {[%clk 0:03:01]}  Nxe4 {[%clk 0:02:58]} 11. Qxe4 {[%clk 0:03:02]}  Nd7 {[%clk 0:02:58]} 12. b3 {[%clk 0:02:58]}  Nf6 {[%clk 0:02:58]} 13. Qd3 {[%clk 0:02:52]}  c5 {[%clk 0:02:55]} 14. Bb2 {[%clk 0:02:51]}  cxd4 {[%clk 0:02:55]} 15. Qxd4 {[%clk 0:02:52]}  Be7 {[%clk 0:02:53]} 16. Qxd8 {[%clk 0:02:50]}  Rfxd8 {[%clk 0:02:52]} 17. Rad1 {[%clk 0:02:51]}  Bc5 {[%clk 0:02:50]} 18. Bd4 {[%clk 0:02:22]}  Bxd4 {[%clk 0:02:48]} 19. Nxd4 {[%clk 0:02:22]}  Ne4 {[%clk 0:02:46]} 20. Ne2 {[%clk 0:02:16]}  Nd2 {[%clk 0:02:29]} 21. Rfe1 {[%clk 0:02:16]}  Rd7 {[%clk 0:02:28]} 22. Nc3 {[%clk 0:01:04]}  Rad8 {[%clk 0:02:28]} 23. Rc1 {[%clk 0:01:04]}  Kf8 {[%clk 0:02:19]} 24. f3 {[%clk 0:01:04]}  g5 {[%clk 0:02:10]} 25. Re2 {[%clk 0:00:59]}  h5 {[%clk 0:01:44]} 26. h3 {[%clk 0:00:53]}  g4 {[%clk 0:01:38]} 27. hxg4 {[%clk 0:00:51]}  hxg4 {[%clk 0:01:39]} 28. fxg4 {[%clk 0:00:52]}  Rd4 {[%clk 0:01:39]} 29. Kf2 {[%clk 0:00:31]}  Rxg4 {[%clk 0:01:39]} 30. Rc2 {[%clk 0:00:27]}  Rgd4 {[%clk 0:01:30]} 31. Ke1 {[%clk 0:00:16]}  Nb1 {[%clk 0:01:26]} 32. Nxb1 {[%clk 0:00:17]}  Rd1+ {[%clk 0:01:26]} 33. Kf2 {[%clk 0:00:18]}  Rxb1 {[%clk 0:01:26]} 34. Red2 {[%clk 0:00:18]}  Ke7 {[%clk 0:01:21]} 35. Rxd8 {[%clk 0:00:18]}  Kxd8 {[%clk 0:01:22]} 36. Rd2+ {[%clk 0:00:19]}  Ke7 {[%clk 0:01:20]} 37. Re2 {[%clk 0:00:19]}  f5 {[%clk 0:01:19]} 38. Kf3 {[%clk 0:00:13]}  Kf6 {[%clk 0:01:18]} 39. g4 {[%clk 0:00:12]}  Rf1+ {[%clk 0:01:11]} 40. Kg2 {[%clk 0:00:12]}  Ra1 {[%clk 0:01:11]} 41. gxf5 {[%clk 0:00:09]}  Kxf5 {[%clk 0:01:12]} 42. Kf3 {[%clk 0:00:10]}  e5 {[%clk 0:01:10]} 43. Ke3 {[%clk 0:00:10]}  e4 {[%clk 0:01:08]} 44. Rf2+ {[%clk 0:00:07]}  Ke5 {[%clk 0:01:08]} 45. Rf7 {[%clk 0:00:08]}  Re1+ {[%clk 0:00:55]} 46. Kd2 {[%clk 0:00:08]}  Ra1 {[%clk 0:00:56]} 47. Ke3 {[%clk 0:00:08]}  Re1+ {[%clk 0:00:47]} 48. Kd2 {[%clk 0:00:09]}  Ra1 {[%clk 0:00:47]} 49. Ke3 {[%clk 0:00:09]} 1/2-1/2


[Site "https://www.chess.com"]

[Event "Titled Tuesday Blitz March 28 Early 2023"]
[White "Papasimakopoulos, Alexandros"]
[Black "Rustemov, Alexander"]
[WhiteFideId "4244125"]
[BlackFideId "4119002"]
[WhiteElo "2359"]
[BlackElo "2865"]
[Result "0-1"]
[Round "10"]
[TimeControl "180+2"]
[Date "2023.03.28"]
[WhiteClock "0:00:11"]
[BlackClock "0:01:18"]

1. d4 {[%clk 0:02:58]}  g6 {[%clk 0:02:57]} 2. g3 {[%clk 0:02:42]}  Bg7 {[%clk 0:02:57]} 3. Nf3 {[%clk 0:02:36]}  c5 {[%clk 0:02:57]} 4. Bg2 {[%clk 0:02:33]}  cxd4 {[%clk 0:02:57]} 5. Nxd4 {[%clk 0:02:33]}  Nc6 {[%clk 0:02:58]} 6. c3 {[%clk 0:02:16]}  Nf6 {[%clk 0:02:57]} 7. O-O {[%clk 0:02:13]}  O-O {[%clk 0:02:58]} 8. Nd2 {[%clk 0:02:13]}  d5 {[%clk 0:02:58]} 9. N2f3 {[%clk 0:02:08]}  Ne4 {[%clk 0:02:54]} 10. Nxc6 {[%clk 0:01:58]}  bxc6 {[%clk 0:02:54]} 11. Nd2 {[%clk 0:01:57]}  Nd6 {[%clk 0:02:50]} 12. Nb3 {[%clk 0:01:50]}  Nc4 {[%clk 0:02:41]} 13. Nd4 {[%clk 0:01:46]}  Bd7 {[%clk 0:02:38]} 14. b3 {[%clk 0:01:46]}  Nd6 {[%clk 0:02:35]} 15. Bb2 {[%clk 0:01:42]}  Qb6 {[%clk 0:02:33]} 16. Rc1 {[%clk 0:01:34]}  Rfd8 {[%clk 0:02:32]} 17. Qd2 {[%clk 0:01:28]}  Rac8 {[%clk 0:02:31]} 18. Rfd1 {[%clk 0:01:23]}  e5 {[%clk 0:02:30]} 19. Nf3 {[%clk 0:01:20]}  Ne4 {[%clk 0:02:30]} 20. Qe1 {[%clk 0:01:19]}  Be6 {[%clk 0:02:25]} 21. e3 {[%clk 0:01:18]}  a5 {[%clk 0:02:23]} 22. Nd2 {[%clk 0:01:17]}  Nc5 {[%clk 0:02:20]} 23. Nf3 {[%clk 0:01:16]}  e4 {[%clk 0:01:59]} 24. Nd4 {[%clk 0:01:16]}  Bg4 {[%clk 0:01:57]} 25. f3 {[%clk 0:01:14]}  exf3 {[%clk 0:01:55]} 26. Bxf3 {[%clk 0:01:02]}  Bxf3 {[%clk 0:01:53]} 27. Nxf3 {[%clk 0:01:01]}  Re8 {[%clk 0:01:50]} 28. Qe2 {[%clk 0:00:50]}  Bh6 {[%clk 0:01:49]} 29. Kh1 {[%clk 0:00:35]}  Bxe3 {[%clk 0:01:46]} 30. Rb1 {[%clk 0:00:32]}  Ne4 {[%clk 0:01:44]} 31. Kg2 {[%clk 0:00:29]}  Bh6 {[%clk 0:01:35]} 32. Qf1 {[%clk 0:00:21]}  a4 {[%clk 0:01:26]} 33. c4 {[%clk 0:00:17]}  axb3 {[%clk 0:01:24]} 34. axb3 {[%clk 0:00:18]}  Qxb3 {[%clk 0:01:23]} 35. cxd5 {[%clk 0:00:19]}  Qc2+ {[%clk 0:01:21]} 36. Kh3 {[%clk 0:00:11]}  Nf2+ {[%clk 0:01:21]} 37. Kh4 {[%clk 0:00:10]}  Qe4+ {[%clk 0:01:19]} 38. g4 {[%clk 0:00:11]}  Qxg4# {[%clk 0:01:18]} 0-1


[Site "https://www.chess.com"]

[Event "Titled Tuesday Blitz March 28 Early 2023"]
[White "Ismagilov, Damir"]
[Black "Urazayev, Arystanbek"]
[WhiteFideId "34199982"]
[BlackFideId "13709810"]
[WhiteElo "2078"]
[BlackElo "2479"]
[Result "0-1"]
[Round "10"]
[TimeControl "180+2"]
[Date "2023.03.28"]
[WhiteClock "0:00:28"]
[BlackClock "0:01:06"]

1. d4 {[%clk 0:03:00]}  Nf6 {[%clk 0:02:57]} 2. Bf4 {[%clk 0:03:01]}  e6 {[%clk 0:02:56]} 3. e3 {[%clk 0:03:01]}  d5 {[%clk 0:02:57]} 4. Nd2 {[%clk 0:03:01]}  c5 {[%clk 0:02:57]} 5. c3 {[%clk 0:03:01]}  Nc6 {[%clk 0:02:58]} 6. Bd3 {[%clk 0:03:02]}  Qb6 {[%clk 0:02:57]} 7. Rb1 {[%clk 0:03:02]}  Bd7 {[%clk 0:02:53]} 8. h3 {[%clk 0:03:01]}  Be7 {[%clk 0:02:40]} 9. Ngf3 {[%clk 0:03:01]}  O-O {[%clk 0:02:41]} 10. O-O {[%clk 0:03:01]}  Rac8 {[%clk 0:02:40]} 11. Ne5 {[%clk 0:03:01]}  Be8 {[%clk 0:02:40]} 12. Bg5 {[%clk 0:02:58]}  h6 {[%clk 0:02:39]} 13. Bh4 {[%clk 0:02:58]}  Qd8 {[%clk 0:02:38]} 14. f4 {[%clk 0:02:57]}  Nxe5 {[%clk 0:02:28]} 15. fxe5 {[%clk 0:02:57]}  Nd7 {[%clk 0:02:29]} 16. Bxe7 {[%clk 0:02:53]}  Qxe7 {[%clk 0:02:28]} 17. e4 {[%clk 0:02:41]}  cxd4 {[%clk 0:02:28]} 18. cxd4 {[%clk 0:02:30]}  Nb6 {[%clk 0:02:27]} 19. Qe2 {[%clk 0:02:17]}  Qb4 {[%clk 0:02:26]} 20. Nf3 {[%clk 0:02:11]}  Bd7 {[%clk 0:02:27]} 21. exd5 {[%clk 0:02:01]}  Nxd5 {[%clk 0:02:25]} 22. Qe4 {[%clk 0:02:01]}  f5 {[%clk 0:02:25]} 23. exf6 {[%clk 0:01:57]}  Nxf6 {[%clk 0:02:25]} 24. Qg6 {[%clk 0:01:47]}  Be8 {[%clk 0:02:25]} 25. Qg3 {[%clk 0:01:45]}  Bc6 {[%clk 0:02:24]} 26. Qg6 {[%clk 0:01:30]}  Be8 {[%clk 0:02:09]} 27. Qg3 {[%clk 0:01:29]}  Bb5 {[%clk 0:02:10]} 28. Bxb5 {[%clk 0:01:22]}  Qxb5 {[%clk 0:02:10]} 29. Rfe1 {[%clk 0:01:15]}  Qd5 {[%clk 0:02:08]} 30. Qe5 {[%clk 0:01:12]}  Qxa2 {[%clk 0:02:05]} 31. Qxe6+ {[%clk 0:01:05]}  Qxe6 {[%clk 0:02:06]} 32. Rxe6 {[%clk 0:01:06]}  Nd5 {[%clk 0:02:07]} 33. Rd6 {[%clk 0:01:00]}  Nf4 {[%clk 0:02:07]} 34. Rf1 {[%clk 0:00:55]}  Rc2 {[%clk 0:01:53]} 35. Rf2 {[%clk 0:00:51]}  Ne2+ {[%clk 0:01:53]} 36. Kh2 {[%clk 0:00:49]}  Nxd4 {[%clk 0:01:53]} 37. Rxc2 {[%clk 0:00:40]}  Nxc2 {[%clk 0:01:54]} 38. Rd7 {[%clk 0:00:40]}  Rf7 {[%clk 0:01:54]} 39. Rd8+ {[%clk 0:00:37]}  Kh7 {[%clk 0:01:55]} 40. Ne5 {[%clk 0:00:37]}  Re7 {[%clk 0:01:51]} 41. Nc4 {[%clk 0:00:38]}  Ne3 {[%clk 0:01:47]} 42. Nd6 {[%clk 0:00:38]}  h5 {[%clk 0:01:29]} 43. Nc8 {[%clk 0:00:37]}  Rc7 {[%clk 0:01:18]} 44. Re8 {[%clk 0:00:32]}  Nf1+ {[%clk 0:01:03]} 45. Kg1 {[%clk 0:00:33]}  Ng3 {[%clk 0:01:03]} 46. Nxa7 {[%clk 0:00:33]}  h4 {[%clk 0:01:04]} 47. Nb5 {[%clk 0:00:25]}  Rc1+ {[%clk 0:01:02]} 48. Kf2 {[%clk 0:00:25]}  Rf1+ {[%clk 0:01:02]} 49. Ke3 {[%clk 0:00:24]}  Re1+ {[%clk 0:01:03]} 50. Kf4 {[%clk 0:00:25]}  Rxe8 {[%clk 0:01:04]} 51. Nd6 {[%clk 0:00:25]}  Re6 {[%clk 0:01:04]} 52. Nxb7 {[%clk 0:00:25]}  Rb6 {[%clk 0:01:04]} 53. Nd8 {[%clk 0:00:26]}  Rxb2 {[%clk 0:01:04]} 54. Ne6 {[%clk 0:00:27]}  Rb4+ {[%clk 0:01:04]} 55. Kf3 {[%clk 0:00:27]}  Nf5 {[%clk 0:01:03]} 56. Ng5+ {[%clk 0:00:27]}  Kg6 {[%clk 0:01:04]} 57. Ne6 {[%clk 0:00:27]}  Nd4+ {[%clk 0:01:04]} 58. Nxd4 {[%clk 0:00:27]}  Rxd4 {[%clk 0:01:05]} 59. g4 {[%clk 0:00:28]}  Ra4 {[%clk 0:01:06]} 0-1


[Site "https://www.chess.com"]

[Event "Titled Tuesday Blitz March 28 Early 2023"]
[White "Hnydiuk, Aleksander"]
[Black "Ashraf, Artin"]
[WhiteFideId "1109057"]
[BlackFideId "22514805"]
[WhiteElo "2374"]
[BlackElo "2188"]
[Result "0-1"]
[Round "10"]
[TimeControl "180+2"]
[Date "2023.03.28"]
[WhiteClock "0:00:04"]
[BlackClock "0:00:04"]

1. e4 {[%clk 0:03:00]}  c5 {[%clk 0:03:00]} 2. Nf3 {[%clk 0:03:00]}  d6 {[%clk 0:03:01]} 3. d4 {[%clk 0:03:01]}  cxd4 {[%clk 0:03:01]} 4. Nxd4 {[%clk 0:03:02]}  Nf6 {[%clk 0:03:02]} 5. Nc3 {[%clk 0:03:02]}  a6 {[%clk 0:03:03]} 6. Bg5 {[%clk 0:03:03]}  e6 {[%clk 0:03:01]} 7. f4 {[%clk 0:03:02]}  h6 {[%clk 0:03:01]} 8. Bh4 {[%clk 0:03:02]}  Qb6 {[%clk 0:03:02]} 9. a3 {[%clk 0:03:00]}  Nc6 {[%clk 0:03:02]} 10. Bf2 {[%clk 0:03:00]}  Qc7 {[%clk 0:03:02]} 11. Qd2 {[%clk 0:02:38]}  Bd7 {[%clk 0:03:01]} 12. O-O-O {[%clk 0:02:38]}  Rc8 {[%clk 0:02:59]} 13. Kb1 {[%clk 0:02:37]}  Be7 {[%clk 0:02:54]} 14. Be2 {[%clk 0:02:35]}  b5 {[%clk 0:02:52]} 15. Rhg1 {[%clk 0:02:24]}  Nxd4 {[%clk 0:02:20]} 16. Bxd4 {[%clk 0:02:20]}  e5 {[%clk 0:02:20]} 17. Be3 {[%clk 0:02:16]}  O-O {[%clk 0:02:16]} 18. g4 {[%clk 0:02:14]}  Bc6 {[%clk 0:01:30]} 19. Bf3 {[%clk 0:01:53]}  Qb7 {[%clk 0:01:22]} 20. fxe5 {[%clk 0:01:35]}  dxe5 {[%clk 0:01:19]} 21. g5 {[%clk 0:01:22]}  Nxe4 {[%clk 0:01:01]} 22. Bxe4 {[%clk 0:01:11]}  Bxe4 {[%clk 0:01:02]} 23. gxh6 {[%clk 0:01:09]}  g6 {[%clk 0:00:59]} 24. Qd7 {[%clk 0:00:52]}  Rc7 {[%clk 0:00:54]} 25. Qg4 {[%clk 0:00:50]}  Bf3 {[%clk 0:00:39]} 26. h7+ {[%clk 0:00:41]}  Kh8 {[%clk 0:00:31]} 27. Qg3 {[%clk 0:00:41]}  Bxd1 {[%clk 0:00:30]} 28. Rxd1 {[%clk 0:00:41]}  Bf6 {[%clk 0:00:24]} 29. Rf1 {[%clk 0:00:19]}  Bg7 {[%clk 0:00:23]} 30. h4 {[%clk 0:00:16]}  Kxh7 {[%clk 0:00:11]} 31. h5 {[%clk 0:00:16]}  Qc6 {[%clk 0:00:11]} 32. Qh2 {[%clk 0:00:11]}  g5 {[%clk 0:00:09]} 33. h6 {[%clk 0:00:10]}  Bh8 {[%clk 0:00:07]} 34. Bxg5 {[%clk 0:00:08]}  f5 {[%clk 0:00:07]} 35. Rd1 {[%clk 0:00:05]}  Qg6 {[%clk 0:00:05]} 36. Nd5 {[%clk 0:00:04]}  Rcf7 {[%clk 0:00:04]} 37. Bc1 {[%clk 0:00:04]}  f4 {[%clk 0:00:04]} 0-1


[Site "https://www.chess.com"]